[Event "Dvaro taure"]
[Site "Taujenai, Lithuania"]
[Date "2021.11.28"]
[Round "9.20"]
[White "Posaskov, Sergej"]
[Black "Satkauskas, Benediktas"]
[Result "0-1"]
[WhiteElo "1539"]
[BlackElo "1392"]
[PlyCount "116"]
[EventDate "2021.??.??"]
[TimeControl "10+5"]
[WhiteClock "0:05:07"]
[BlackClock "0:00:52"]

1. e4 {[%emt 0:00:01]} c6 {[%emt 0:00:01]} 2. Nf3 {[%emt 0:00:04]} d5 {[%emt 0:
00:02]} 3. e5 {[%emt 0:00:03]} Bf5 {[%emt 0:00:00]} 4. d4 {[%emt 0:00:02]} e6 {
[%emt 0:00:01]} 5. c4 {[%emt 0:00:05]} Nd7 {[%emt 0:00:15]} 6. Nc3 {[%emt 0:00:
04]} Bb4 {[%emt 0:00:06]} 7. Bd2 {[%emt 0:00:03]} Bxc3 {[%emt 0:00:15]} 8. Bxc3
{[%emt 0:00:02]} Ne7 {[%emt 0:00:03]} 9. Bd3 {[%emt 0:00:06]} Bg6 {[%emt 0:00:
04]} 10. h4 {[%emt 0:00:10]} h6 {[%emt 0:00:35]} 11. Bxg6 {[%emt 0:00:24]} Nxg6
{[%emt 0:00:02]} 12. Qb3 {[%emt 0:00:02]} Qb6 {[%emt 0:00:13]} 13. cxd5 {[%emt
0:00:05]} cxd5 {[%emt 0:00:07]} 14. Qa4 {[%emt 0:00:25]} Qc6 {[%emt 0:00:45]}
15. Qa3 {[%emt 0:00:10]} Nb6 {[%emt 0:00:17]} 16. Bb4 {[%emt 0:00:18]} Nc4 {
[%emt 0:00:12]} 17. Qb3 {[%emt 0:00:13]} a5 {[%emt 0:00:17]} 18. Bd6 {[%emt 0:
00:20]} Nxd6 {[%emt 0:01:37]} 19. exd6 {[%emt 0:00:01]} Qxd6 {[%emt 0:00:02]}
20. Rc1 {[%emt 0:00:02]} Qb4+ {[%emt 0:00:16]} 21. Rc3 {[%emt 0:00:13]} Qxb3 {
[%emt 0:00:05]} 22. Rxb3 {[%emt 0:00:04]} Ra7 {[%emt 0:00:58]} 23. O-O {[%emt
0:00:02]} Kd7 {[%emt 0:00:04]} 24. Rc1 {[%emt 0:00:04]} Rc8 {[%emt 0:00:03]}
25. Rc5 {[%emt 0:00:12]} Rxc5 {[%emt 0:00:24]} 26. dxc5 {[%emt 0:00:01]} Kc6 {
[%emt 0:00:18]} 27. Rc3 {[%emt 0:00:03]} f6 {[%emt 0:00:38]} 28. g3 {[%emt 0:
00:07]} e5 {[%emt 0:00:13]} 29. a3 {[%emt 0:00:21]} e4 {[%emt 0:00:01]} 30.
Nd4+ {[%emt 0:00:02]} Kd7 {[%emt 0:00:09]} 31. Kf1 {[%emt 0:00:11]} Ne5 {[%emt
0:00:07]} 32. b3 {[%emt 0:00:07]} Nc6 {[%emt 0:00:05]} 33. Nb5 {[%emt 0:00:13]}
Ra8 {[%emt 0:00:12]} 34. Ke2 {[%emt 0:00:09]} g5 {[%emt 0:00:37]} 35. hxg5 {
[%emt 0:00:09]} hxg5 {[%emt 0:00:02]} 36. Ke3 {[%emt 0:00:50]} Rb8 {[%emt 0:01:
10]} 37. Rc1 {[%emt 0:00:03]} Rh8 {[%emt 0:00:09]} 38. Rd1 {[%emt 0:00:07]} Ne7
{[%emt 0:00:30]} 39. Nd6 {[%emt 0:00:34]} b6 {[%emt 0:00:32]} 40. Nc4 {[%emt 0:
00:55]} bxc5 {[%emt 0:00:13]} 41. Nxa5 {[%emt 0:00:02]} Nf5+ {[%emt 0:00:35]}
42. Ke2 {[%emt 0:00:04]} Nd4+ {[%emt 0:00:04]} 43. Ke3 {[%emt 0:00:13]} Ke6 {
[%emt 0:00:17]} 44. Rc1 {[%emt 0:00:50]} Rc8 {[%emt 0:00:21]} 45. b4 {[%emt 0:
00:16]} Nf5+ {[%emt 0:00:22]} 46. Kd2 {[%emt 0:00:07]} c4 {[%emt 0:00:02]} 47.
Nb7 {[%emt 0:00:05]} Nd4 {[%emt 0:00:11]} 48. Nc5+ {[%emt 0:00:02]} Rxc5 {
[%emt 0:00:12]} 49. bxc5 {[%emt 0:00:02]} Nb3+ {[%emt 0:00:01]} 50. Kc2 {[%emt
0:00:11]} Nxc1 {[%emt 0:00:02]} 51. Kxc1 {[%emt 0:00:00]} Kd7 {[%emt 0:00:02]}
52. Kb2 {[%emt 0:00:07]} Kc6 {[%emt 0:00:01]} 53. a4 {[%emt 0:00:02]} Kxc5 {
[%emt 0:00:02]} 54. Ka3 {[%emt 0:00:03]} d4 {[%emt 0:00:09]} 55. a5 {[%emt 0:
00:07]} Kb5 {[%emt 0:00:06]} 56. a6 {[%emt 0:00:01]} Kxa6 {[%emt 0:00:06]} 57.
Kb4 {[%emt 0:00:02]} e3 {[%emt 0:00:10]} 58. fxe3 {[%emt 0:00:02]} dxe3 {[%emt
0:00:02]} 0-1

[Event "Dvaro taure"]
[Site "Taujenai, Lithuania"]
[Date "2021.11.28"]
[Round "9.21"]
[White "Jonaitis, Herkus"]
[Black "Praspaliauskas, Matas"]
[Result "1-0"]
[WhiteElo "1277"]
[BlackElo "1443"]
[PlyCount "79"]
[EventDate "2021.??.??"]
[TimeControl "10+5"]
[WhiteClock "0:06:25"]
[BlackClock "0:05:50"]

1. d4 {[%emt 0:00:01]} d5 {[%emt 0:00:01]} 2. c4 {[%emt 0:00:02]} e6 {[%emt 0:
00:00]} 3. Nc3 {[%emt 0:00:05]} Nf6 {[%emt 0:00:01]} 4. Bg5 {[%emt 0:00:03]} b6
{[%emt 0:00:37]} 5. cxd5 {[%emt 0:00:06]} exd5 {[%emt 0:00:05]} 6. e3 {[%emt 0:
00:06]} Bb7 {[%emt 0:00:04]} 7. Nf3 {[%emt 0:00:09]} Be7 {[%emt 0:00:07]} 8.
Bb5+ {[%emt 0:00:04]} Nbd7 {[%emt 0:00:08]} 9. Ne5 {[%emt 0:00:21]} Bc8 {[%emt
0:00:23]} 10. Nc6 {[%emt 0:00:05]} a6 {[%emt 0:00:48]} 11. Nxd8 {[%emt 0:00:04]
} axb5 {[%emt 0:00:05]} 12. Nc6 {[%emt 0:00:04]} Bb7 {[%emt 0:00:07]} 13. Bxf6
{[%emt 0:00:11]} Bxf6 {[%emt 0:00:05]} 14. Nb4 {[%emt 0:00:04]} c6 {[%emt 0:00:
11]} 15. Nd3 {[%emt 0:00:08]} O-O {[%emt 0:00:05]} 16. a3 {[%emt 0:00:07]} c5 {
[%emt 0:00:05]} 17. dxc5 {[%emt 0:00:08]} bxc5 {[%emt 0:00:02]} 18. Rc1 {[%emt
0:00:26]} b4 {[%emt 0:00:18]} 19. axb4 {[%emt 0:00:07]} cxb4 {[%emt 0:00:01]}
20. Nxb4 {[%emt 0:00:06]} Ne5 {[%emt 0:00:23]} 21. Nbxd5 {[%emt 0:00:17]} Rfd8
{[%emt 0:00:35]} 22. e4 {[%emt 0:00:13]} Nc4 {[%emt 0:00:31]} 23. Qb3 {[%emt 0:
00:21]} Bxd5 {[%emt 0:00:25]} 24. Nxd5 {[%emt 0:00:10]} Ne5 {[%emt 0:00:02]}
25. Nxf6+ {[%emt 0:00:17]} gxf6 {[%emt 0:00:04]} 26. O-O {[%emt 0:00:04]} Rab8
{[%emt 0:00:12]} 27. Qg3+ {[%emt 0:00:05]} Kh8 {[%emt 0:00:09]} 28. Rfd1 {
[%emt 0:00:12]} Re8 {[%emt 0:00:01]} 29. Qf4 {[%emt 0:00:15]} Kg7 {[%emt 0:00:
04]} 30. Rc3 {[%emt 0:00:09]} Rxb2 {[%emt 0:00:10]} 31. Rg3+ {[%emt 0:00:06]}
Ng6 {[%emt 0:00:02]} 32. h4 {[%emt 0:00:17]} h5 {[%emt 0:00:06]} 33. Qf3 {
[%emt 0:00:17]} Re6 {[%emt 0:00:22]} 34. Re1 {[%emt 0:00:29]} Kh6 {[%emt 0:00:
11]} 35. Qe3+ {[%emt 0:00:31]} Kh7 {[%emt 0:00:05]} 36. Qc5 {[%emt 0:00:16]}
Rbb6 {[%emt 0:00:38]} 37. Qxh5+ {[%emt 0:00:06]} Kg7 {[%emt 0:00:04]} 38. Qf5 {
[%emt 0:00:04]} Re5 {[%emt 0:00:05]} 39. Qf3 {[%emt 0:00:15]} Kh6 {[%emt 0:00:
12]} 40. Rd1 {[%emt 0:01:38]} 1-0

[Event "Dvaro taure"]
[Site "Taujenai, Lithuania"]
[Date "2021.11.28"]
[Round "9.23"]
[White "Mikolavicius, Julius"]
[Black "Paliulis, Aivaras"]
[Result "0-1"]
[WhiteElo "1152"]
[BlackElo "1714"]
[PlyCount "66"]
[EventDate "2021.??.??"]
[TimeControl "10+5"]
[WhiteClock "0:06:01"]
[BlackClock "0:05:39"]

1. e4 {[%emt 0:00:01]} e5 {[%emt 0:00:02]} 2. Nf3 {[%emt 0:00:02]} Nc6 {[%emt
0:00:01]} 3. Bc4 {[%emt 0:00:00]} Bc5 {[%emt 0:00:00]} 4. O-O {[%emt 0:00:03]}
d6 {[%emt 0:00:03]} 5. h3 {[%emt 0:00:02]} Be6 {[%emt 0:00:02]} 6. Bb3 {[%emt
0:00:06]} Nf6 {[%emt 0:00:01]} 7. Nc3 {[%emt 0:00:04]} O-O {[%emt 0:00:05]} 8.
Nd5 {[%emt 0:00:03]} Na5 {[%emt 0:00:09]} 9. Nxf6+ {[%emt 0:00:08]} Qxf6 {
[%emt 0:00:06]} 10. d3 {[%emt 0:00:02]} Nxb3 {[%emt 0:00:15]} 11. axb3 {[%emt
0:00:02]} h6 {[%emt 0:00:31]} 12. c4 {[%emt 0:00:09]} Qg6 {[%emt 0:00:32]} 13.
Kh1 {[%emt 0:00:24]} f5 {[%emt 0:00:21]} 14. exf5 {[%emt 0:00:16]} Bxf5 {[%emt
0:00:02]} 15. Be3 {[%emt 0:00:03]} Bxd3 {[%emt 0:00:10]} 16. Rg1 {[%emt 0:00:
12]} Bxe3 {[%emt 0:01:02]} 17. fxe3 {[%emt 0:00:05]} e4 {[%emt 0:00:04]} 18.
Ne1 {[%emt 0:00:16]} Rf2 {[%emt 0:00:33]} 19. Nxd3 {[%emt 0:00:08]} exd3 {
[%emt 0:00:02]} 20. Qc1 {[%emt 0:00:35]} d2 {[%emt 0:00:38]} 21. Qd1 {[%emt 0:
00:19]} a6 {[%emt 0:00:51]} 22. Ra5 {[%emt 0:00:52]} c6 {[%emt 0:00:39]} 23.
Ra2 {[%emt 0:00:21]} Re8 {[%emt 0:00:08]} 24. b4 {[%emt 0:01:12]} Rxe3 {[%emt
0:00:02]} 25. Qg4 {[%emt 0:00:18]} Qxg4 {[%emt 0:00:24]} 26. hxg4 {[%emt 0:00:
02]} Re1 {[%emt 0:00:13]} 27. Ra1 {[%emt 0:00:17]} Rxa1 {[%emt 0:00:06]} 28.
Rxa1 {[%emt 0:00:00]} Re2 {[%emt 0:00:01]} 29. Kh2 {[%emt 0:00:33]} Re1 {[%emt
0:00:01]} 30. Rxe1 {[%emt 0:00:02]} dxe1=Q {[%emt 0:00:03]} 31. Kh3 {[%emt 0:
00:00]} Qxb4 {[%emt 0:00:05]} 32. g3 {[%emt 0:00:01]} Qxb2 {[%emt 0:00:04]} 33.
Kh4 {[%emt 0:00:00]} Qh2# {[%emt 0:00:04]} 0-1

[Event "Dvaro taure"]
[Site "Taujenai, Lithuania"]
[Date "2021.11.28"]
[Round "9.24"]
[White "Velicka, Ramunas"]
[Black "Alejunaite, Milda"]
[Result "1-0"]
[WhiteElo "1606"]
[BlackElo "1171"]
[PlyCount "66"]
[EventDate "2021.??.??"]
[TimeControl "10+5"]
[WhiteClock "0:03:17"]

1. f4 {[%emt 0:00:02]} Nc6 {[%emt 0:00:06]} 2. Nf3 {[%emt 0:00:01]} d5 {[%emt
0:00:10]} 3. e3 {[%emt 0:00:02]} Bf5 {[%emt 0:00:08]} 4. d3 {[%emt 0:00:06]}
Nf6 {[%emt 0:00:17]} 5. h3 {[%emt 0:00:04]} Bd7 {[%emt 0:00:21]} 6. Be2 {[%emt
0:00:02]} e6 {[%emt 0:00:01]} 7. O-O {[%emt 0:00:09]} Bc5 {[%emt 0:00:20]} 8.
Kh1 {[%emt 0:00:17]} Nh5 {[%emt 0:00:12]} 9. Kh2 {[%emt 0:00:09]} O-O {[%emt 0:
01:02]} 10. d4 {[%emt 0:00:08]} Bd6 {[%emt 0:00:15]} 11. Ne5 {[%emt 0:00:02]}
Nf6 {[%emt 0:00:20]} 12. Nxd7 {[%emt 0:00:06]} Qxd7 {[%emt 0:00:01]} 13. Nd2 {
[%emt 0:00:04]} Ne4 {[%emt 0:01:26]} 14. Nxe4 {[%emt 0:00:03]} dxe4 {[%emt 0:
00:01]} 15. a3 {[%emt 0:00:22]} f6 {[%emt 0:00:22]} 16. Kg1 {[%emt 0:00:18]}
Rad8 {[%emt 0:00:32]} 17. c4 {[%emt 0:00:07]} Be7 {[%emt 0:00:31]} 18. Qc2 {
[%emt 0:00:24]} f5 {[%emt 0:00:10]} 19. Bd2 {[%emt 0:00:14]} Bh4 {[%emt 0:00:
05]} 20. Rad1 {[%emt 0:00:07]} Bg3 {[%emt 0:00:39]} 21. d5 {[%emt 0:00:10]}
exd5 {[%emt 0:00:09]} 22. cxd5 {[%emt 0:00:02]} Ne7 {[%emt 0:00:12]} 23. Bb4 {
[%emt 0:00:07]} Rfe8 {[%emt 0:01:00]} 24. Rd4 {[%emt 0:00:29]} c6 {[%emt 0:00:
34]} 25. d6 {[%emt 0:01:19]} Nd5 {[%emt 0:00:03]} 26. Bc4 {[%emt 0:00:17]} Rc8
{[%emt 0:01:36]} 27. Bxd5+ {[%emt 0:00:26]} cxd5 {[%emt 0:00:02]} 28. Qd2 {
[%emt 0:00:21]} Qa4 {[%emt 0:00:48]} 29. Rxd5 {[%emt 0:00:09]} Rc2 {[%emt 0:00:
13]} 30. d7 {[%emt 0:00:20]} Rd8 {[%emt 0:00:12]} 31. Qd4 {[%emt 0:00:47]} Qa6
{[%emt 0:00:46]} 32. Qe5 {[%emt 0:01:31]} Qe2 {[%emt 0:00:11]} 33. Qe8+ {[%emt
0:00:35]} Rxe8 {[%emt 0:00:21]} 1-0

[Event "Dvaro taure"]
[Site "Taujenai, Lithuania"]
[Date "2021.11.28"]
[Round "9.26"]
[White "Griksaite, Ruta"]
[Black "Jasas, Ignas"]
[Result "0-1"]
[WhiteElo "1098"]
[BlackElo "1216"]
[PlyCount "134"]
[EventDate "2021.??.??"]
[TimeControl "10+5"]
[WhiteClock "0:01:56"]
[BlackClock "0:08:08"]

1. d4 {[%emt 0:34:43]} Nf6 {[%emt 0:00:02]} 2. Nf3 {[%emt 0:00:04]} g6 {[%emt
0:00:00]} 3. Bf4 {[%emt 0:00:04]} d5 {[%emt 0:00:01]} 4. e3 {[%emt 0:00:01]}
Bg7 {[%emt 0:00:02]} 5. h3 {[%emt 0:00:06]} Bf5 {[%emt 0:00:02]} 6. Bd3 {[%emt
0:00:03]} e6 {[%emt 0:00:17]} 7. Qe2 {[%emt 0:00:32]} Bxd3 {[%emt 0:00:08]} 8.
Qxd3 {[%emt 0:00:03]} O-O {[%emt 0:00:02]} 9. O-O {[%emt 0:00:06]} Qd7 {[%emt
0:00:12]} 10. c3 {[%emt 0:00:28]} Na6 {[%emt 0:00:20]} 11. Nbd2 {[%emt 0:00:08]
} Rac8 {[%emt 0:00:00]} 12. Rac1 {[%emt 0:00:33]} c5 {[%emt 0:00:08]} 13. Rfe1
{[%emt 0:00:09]} c4 {[%emt 0:00:35]} 14. Qc2 {[%emt 0:00:10]} b5 {[%emt 0:00:
02]} 15. a3 {[%emt 0:00:16]} Nh5 {[%emt 0:00:12]} 16. Bh2 {[%emt 0:00:06]} f5 {
[%emt 0:00:10]} 17. Ne5 {[%emt 0:00:07]} Bxe5 {[%emt 0:00:02]} 18. Bxe5 {[%emt
0:00:04]} Nb8 {[%emt 0:00:34]} 19. f4 {[%emt 0:00:14]} Nc6 {[%emt 0:00:08]} 20.
Nf3 {[%emt 0:00:06]} Ng3 {[%emt 0:00:07]} 21. Kh2 {[%emt 0:00:13]} Ne4 {[%emt
0:00:03]} 22. Nd2 {[%emt 0:00:17]} Nf2 {[%emt 0:00:06]} 23. Rf1 {[%emt 0:00:17]
} Nd3 {[%emt 0:00:04]} 24. Ra1 {[%emt 0:00:26]} a5 {[%emt 0:00:18]} 25. Nf3 {
[%emt 0:00:13]} b4 {[%emt 0:00:12]} 26. axb4 {[%emt 0:00:05]} axb4 {[%emt 0:00:
00]} 27. Ne1 {[%emt 0:00:11]} Ncxe5 {[%emt 0:00:40]} 28. fxe5 {[%emt 0:00:06]}
Nxe1 {[%emt 0:00:12]} 29. Raxe1 {[%emt 0:00:18]} Rb8 {[%emt 0:00:14]} 30. Rb1 {
[%emt 0:00:14]} Rb7 {[%emt 0:00:21]} 31. Qd2 {[%emt 0:00:15]} b3 {[%emt 0:00:
12]} 32. Ra1 {[%emt 0:00:10]} Qd8 {[%emt 0:00:11]} 33. Qf2 {[%emt 0:01:08]}
Rbf7 {[%emt 0:00:00]} 34. Qg3 {[%emt 0:00:07]} Kh8 {[%emt 0:00:10]} 35. Rf4 {
[%emt 0:00:13]} g5 {[%emt 0:00:07]} 36. Rff1 {[%emt 0:00:15]} Rg8 {[%emt 0:00:
24]} 37. Qe1 {[%emt 0:00:25]} g4 {[%emt 0:00:04]} 38. Qe2 {[%emt 0:00:16]} Qh4
{[%emt 0:00:07]} 39. Rf4 {[%emt 0:00:13]} h5 {[%emt 0:00:06]} 40. Kh1 {[%emt 0:
00:24]} Qg5 {[%emt 0:00:15]} 41. Qf2 {[%emt 0:00:21]} gxh3 {[%emt 0:00:42]} 42.
gxh3 {[%emt 0:00:07]} Qg3 {[%emt 0:00:03]} 43. Rf3 {[%emt 0:00:26]} Qxf2 {
[%emt 0:00:07]} 44. Rxf2 {[%emt 0:00:02]} Rg3 {[%emt 0:00:01]} 45. Re2 {[%emt
0:00:38]} Rxh3+ {[%emt 0:00:03]} 46. Kg2 {[%emt 0:00:01]} Rh4 {[%emt 0:00:03]}
47. Kg3 {[%emt 0:00:29]} Rg4+ {[%emt 0:00:03]} 48. Kh3 {[%emt 0:00:02]} Kg7 {
[%emt 0:00:23]} 49. Rg2 {[%emt 0:00:16]} Kg6 {[%emt 0:00:02]} 50. Rxg4+ {[%emt
0:00:13]} hxg4+ {[%emt 0:00:03]} 51. Kg3 {[%emt 0:00:01]} Rh7 {[%emt 0:00:03]}
52. Ra6 {[%emt 0:00:21]} Rh3+ {[%emt 0:00:02]} 53. Kg2 {[%emt 0:00:15]} Kf7 {
[%emt 0:00:11]} 54. Ra7+ {[%emt 0:00:13]} Kg8 {[%emt 0:00:27]} 55. Ra8+ {[%emt
0:00:03]} Kg7 {[%emt 0:00:06]} 56. Ra7+ {[%emt 0:00:02]} Kh6 {[%emt 0:00:00]}
57. Ra6 {[%emt 0:00:10]} Kg5 {[%emt 0:00:04]} 58. Rxe6 {[%emt 0:00:08]} Rxe3 {
[%emt 0:00:02]} 59. Rd6 {[%emt 0:00:06]} Re2+ {[%emt 0:00:03]} 60. Kg3 {[%emt
0:00:06]} Rxb2 {[%emt 0:00:04]} 61. Rxd5 {[%emt 0:00:01]} Rc2 {[%emt 0:00:10]}
62. Rb5 {[%emt 0:00:08]} Rxc3+ {[%emt 0:00:02]} 63. Kf2 {[%emt 0:00:52]} g3+ {
[%emt 0:00:02]} 64. Kg2 {[%emt 0:00:02]} Kf4 {[%emt 0:00:04]} 65. e6 {[%emt 0:
00:02]} Rc2+ {[%emt 0:00:01]} 66. Kg1 {[%emt 0:00:01]} Kf3 {[%emt 0:00:07]} 67.
e7 {[%emt 0:00:02]} Rc1# {[%emt 0:00:01]} 0-1